bitfinex/quotes_SOLUSD_20250624
["timestamp","ask_amount","ask_price","bid_price","bid_amount"]
[1750800849949,1.37797988,145.14,145.08,103.15612721]
[1750800850146,4.18819707,145.13,145.08,90.2465]
[1750800850329,4.18819707,145.12,145.08,90.2465]
[1750800850653,4.18819707,145.12,145.07,4.18819707]
[1750800852045,1.37835975,145.1,145.06,92.88819707]
[1750800853549,1.37826476,145.11,145.07,4.18819707]
[1750800858534,4.18819707,145.1,145.05,99.33539707]
[1750800860349,1.37845475,145.09,145.05,10.63539707]
[1750800860653,1.37845475,145.09,145.04,31.76499707]
[1750800860654,5.56665182,145.09,145.04,31.76499707]
[1750800860955,5.56665182,145.09,145.04,5.76499707]
[1750800861132,9.0127887,145.09,145.04,5.76499707]
[1750800861730,4.18819707,145.08,145.04,1.5768]
[1750800862547,1.37864479,145.07,145.04,1.5768]
[1750800862747,5.56684186,145.07,145.02,36.29059707]
[1750800862955,1.37864479,145.07,145.03,4.18819707]
[1750800865653,1.37864479,145.07,145.04,4.18819707]
[1750800866248,1.37854976,145.08,145.04,4.18819707]
[1750800868957,6.51577826,145.1,145.05,4.18819707]
[1750800869261,1.37844492,145.1,145.06,4.18819707]
[1750800869430,5.56664199,145.1,145.05,4.18819707]
[1750800870546,1.37844492,145.1,145.05,4.18819707]
[1750800871660,33.25830859,145.11,145.07,4.18819707]
[1750800871840,7.25830859,145.11,145.07,4.18819707]
[1750800872036,7.25830859,145.11,145.08,4.18819707]
[1750800872366,7.25830859,145.11,145.07,4.18819707]
[1750800872740,5.88,145.11,145.08,4.18819707]
[1750800874165,5.88,145.11,145.08,10.61779707]
[1750800874463,5.88,145.11,145.09,4.18819707]
[1750800875261,3.44475449,145.15,145.09,4.18819707]
[1750800875262,1.37810614,145.13,145.09,4.18819707]
[1750800876348,1.37797988,145.14,145.09,4.18819707]
[1750800877455,6.50252895,145.14,145.09,4.18819707]
[1750800878971,6.50252895,145.14,145.1,4.18819707]
[1750800880061,1.37797988,145.14,145.1,11.07998154]
[1750800880270,1.37797988,145.14,145.1,4.18819707]
[1750800880654,1.37797988,145.14,145.1,11.0799909]
[1750800880952,5.14290438,145.13,145.1,11.0799909]
[1750800881144,1.37797988,145.14,145.1,11.0799909]
[1750800881348,5.1449893,145.13,145.1,11.0799909]
[1750800881565,1.37797988,145.14,145.1,11.0799909]
[1750800881772,5.1449893,145.13,145.1,11.0799909]
[1750800881972,1.37797988,145.14,145.1,11.0799909]
[1750800882155,5.14498979,145.13,145.1,11.0799909]
[1750800882474,1.37797988,145.14,145.1,11.0799909]
[1750800882676,5.14518221,145.13,145.1,11.0799909]
[1750800882973,1.37797988,145.14,145.1,11.0799909]
[1750800883271,5.14521195,145.13,145.1,11.0799909]
[1750800883475,1.37797988,145.14,145.1,11.0799909]
[1750800883676,5.14531503,145.13,145.1,11.0799909]
[1750800883965,1.37797988,145.14,145.1,11.0799909]
[1750800884154,5.14536422,145.13,145.1,99.7799909]
[1750800884354,1.37797988,145.14,145.1,99.7799909]
[1750800884674,5.14536422,145.13,145.1,99.7799909]
[1750800884872,1.37797988,145.14,145.1,99.7799909]
[1750800885075,5.1453974,145.13,145.1,99.7799909]
[1750800885254,1.37797988,145.14,145.1,99.7799909]
[1750800885455,5.1453974,145.13,145.1,99.7799909]
[1750800885669,1.37797988,145.14,145.1,99.7799909]
[1750800885873,5.14543727,145.13,145.1,99.7799909]
[1750800886079,1.37797988,145.14,145.1,99.7799909]
[1750800886256,5.14543775,145.13,145.1,99.7799909]
[1750800886462,1.37797988,145.14,145.1,99.7799909]
[1750800886776,5.14543775,145.13,145.11,4.18819707]
[1750800887077,1.37791855,145.15,145.11,4.18819707]
[1750800887279,5.14550982,145.14,145.11,4.18819707]
[1750800887580,5.14550982,145.13,145.11,4.18819707]
[1750800887778,1.37791855,145.15,145.11,4.18819707]
[1750800888079,5.14559347,145.14,145.11,4.18819707]
[1750800888251,5.14559347,145.13,145.11,11.07951551]
[1750800888450,1.37791855,145.15,145.11,11.07951551]
[1750800888675,5.14567682,145.14,145.11,6.89131844]
[1750800888867,5.14567682,145.13,145.11,6.89131844]
[1750800889052,1.37791855,145.15,145.11,6.89131844]
[1750800889258,5.14567778,145.14,145.11,6.89131844]
[1750800889467,5.56611562,145.15,145.11,6.89131844]
[1750800889664,5.14535157,145.14,145.1,99.77981975]
[1750800889873,5.56611562,145.15,145.1,99.77981975]
[1750800890055,5.14538514,145.14,145.1,99.77981975]
[1750800890255,5.56611562,145.15,145.1,99.77981975]
[1750800890458,5.14541039,145.14,145.1,99.77981975]
[1750800890659,5.56611562,145.15,145.1,99.77981975]
[1750800890869,5.14536192,145.14,145.1,99.77981975]
[1750800891075,5.56611562,145.15,145.1,99.77981975]
[1750800891268,5.14536192,145.14,145.1,99.77981975]
[1750800891468,5.56611562,145.15,145.1,99.77981975]
[1750800891684,5.1453624,145.14,145.1,99.77981975]
[1750800891885,5.56611562,145.15,145.1,99.77981975]
[1750800892062,5.14528917,145.14,145.1,99.77981975]
[1750800892261,1.37791855,145.15,145.11,11.07935091]
[1750800892481,5.14528869,145.14,145.11,11.07935091]
[1750800892783,5.88,145.16,145.12,4.18819707]
[1750800892968,5.14511853,145.15,145.12,4.18819707]
[1750800893170,5.14511853,145.14,145.12,4.18819707]
[1750800893372,5.88,145.16,145.12,4.18819707]
[1750800893569,5.14509024,145.15,145.12,4.18819707]
[1750800893772,5.88,145.16,145.13,4.18819707]
[1750800894077,5.14459839,145.15,145.13,4.18819707]
[1750800894280,5.88,145.16,145.13,4.18819707]
[1750800894693,11.02303246,145.16,145.13,4.18819707]
[1750800895274,11.02303246,145.16,145.1,6.89179875]
[1750800895466,5.88,145.16,145.13,4.18819707]
[1750800895785,11.02194056,145.16,145.13,4.18819707]
[1750800897283,5.88,145.16,145.13,4.18819707]
[1750800900384,5.88,145.16,145.13,11.07853545]
[1750800900889,5.88,145.16,145.14,4.18819707]
[1750800901689,5.88,145.16,145.14,11.07807556]
[1750800903065,5.88,145.16,145.14,11.07807556]
[1750800903573,5.13844995,145.18,145.14,11.07807556]
[1750800904596,5.13844995,145.18,145.15,4.18819707]
[1750800904768,5.13844995,145.19,145.15,4.18819707]
[1750800904970,5.13844995,145.18,145.14,11.07807556]
[1750800905270,5.13844995,145.19,145.14,11.07807556]
[1750800905471,6.51605553,145.18,145.14,11.07807556]
[1750800905689,1.37760558,145.18,145.14,11.07807556]
[1750800905990,6.51605553,145.18,145.14,11.07807556]
[1750800906170,1.37760558,145.18,145.14,11.07807556]
[1750800906370,6.51605553,145.18,145.14,11.07807556]
[1750800906670,1.37760558,145.18,145.14,11.07807556]
[1750800906876,6.51605553,145.18,145.14,11.07807556]
[1750800907087,1.37760558,145.18,145.14,11.07807556]
[1750800907388,6.51605553,145.18,145.14,11.07807556]
[1750800907565,1.37760558,145.18,145.14,11.07807556]
[1750800907765,6.51605553,145.18,145.14,99.77807556]
[1750800907986,1.37760558,145.18,145.14,99.77807556]
[1750800908291,6.51605553,145.18,145.14,99.77807556]
[1750800908467,1.37760558,145.18,145.14,99.77807556]
[1750800908778,5.13844995,145.18,145.15,11.07759553]
[1750800908971,5.13844995,145.2,145.16,4.18819707]
[1750800909181,5.13844995,145.19,145.16,4.18819707]
[1750800909489,5.13844995,145.2,145.16,4.18819707]
[1750800909686,5.13844995,145.19,145.16,4.18819707]
[1750800909993,5.13844995,145.2,145.16,4.18819707]
[1750800910173,5.13844995,145.19,145.16,11.07710133]
[1750800910488,6.51589496,145.2,145.16,11.07710133]
[1750800910685,1.37744501,145.2,145.16,11.07710133]
[1750800911204,5.13592637,145.2,145.17,4.18819707]
[1750800911574,5.13592637,145.21,145.18,4.18819707]
[1750800911881,11.01577185,145.22,145.18,1.5225]
[1750800912201,11.01577185,145.22,145.19,11.07555913]
[1750800914197,11.01577185,145.22,145.19,4.18819707]
[1750800916802,11.01577185,145.22,145.19,92.88819707]
[1750800917493,5.88,145.22,145.19,92.88819707]
[1750800917693,11.01577185,145.22,145.19,92.88819707]
[1750800918180,5.88,145.22,145.19,92.88819707]
[1750800920794,7.25722385,145.22,145.19,88.7]
[1750800921378,10.70027577,145.22,145.19,88.7]
[1750800921576,4.18819707,145.2,145.19,88.7]
[1750800922009,9.32396892,145.21,145.19,88.7]
[1750800922677,1.37741046,145.2,145.15,92.88819707]
[1750800922884,10.70137938,145.2,145.15,88.7]
[1750800923096,5.56560753,145.2,145.15,88.7]
[1750800923391,10.70137938,145.2,145.15,88.7]
[1750800923586,4.18819707,145.19,145.14,1.6626]
[1750800923813,4.18819707,145.17,145.1,8.55088326]
[1750800924106,4.18819707,145.17,145.12,4.18819707]
[1750800924698,1.37779002,145.16,145.1,1.6592]
[1750800924886,10.70175894,145.16,145.1,12.73917976]
[1750800925089,10.70175894,145.16,145.1,8.55098269]
[1750800925287,10.70175894,145.16,145.11,4.18819707]
[1750800925886,6.51356187,145.16,145.11,4.18819707]
[1750800926289,6.51356187,145.16,145.11,6.52657995]
[1750800927201,13.04014182,145.16,145.1,1.6592]
[1750800927501,13.04014182,145.16,145.11,6.52657995]
[1750800928898,6.51356187,145.16,145.11,6.52657995]
[1750800929099,6.51356187,145.16,145.1,1.6592]
[1750800929399,6.51356187,145.16,145.11,6.52657995]
[1750800929802,11.6623518,145.15,145.1,8.18577995]
[1750800930102,5.13787567,145.15,145.1,8.18577995]
[1750800930698,5.13850953,145.14,145.1,8.18577995]
[1750800930895,1.37797988,145.14,145.1,96.88577995]
[1750800931094,6.51648941,145.14,145.1,96.88577995]
[1750800931292,1.37797988,145.14,145.1,96.88577995]
[1750800931485,6.51648941,145.14,145.1,96.88577995]
[1750800931681,1.37797988,145.14,145.1,96.88577995]
[1750800931905,6.51648941,145.14,145.1,96.88577995]
[1750800932202,1.37797988,145.14,145.1,96.88577995]
[1750800932400,1.37797988,145.14,145.08,26.0]
[1750800932401,6.51648941,145.14,145.08,26.0]
[1750800932596,6.51648941,145.14,145.09,6.52657995]
[1750800933809,1.37788494,145.15,145.11,6.52657995]
[1750800934402,5.13908639,145.14,145.11,6.52657995]
[1750800934583,5.13908639,145.14,145.1,8.05187995]
[1750800934978,6.51706635,145.14,145.1,1.5253]
[1750800935287,6.51706635,145.14,145.09,6.52657995]
[1750800935991,6.51706635,145.14,145.09,13.4188052]
[1750800936691,6.51706635,145.14,145.1,6.52657995]
[1750800940087,6.51706635,145.14,145.09,6.52657995]
[1750800941008,6.51706635,145.14,145.08,6.89274882]
[1750800941198,5.13908639,145.13,145.08,13.41932877]
[1750800941397,5.13908639,145.13,145.09,6.52657995]
[1750800942587,6.51706635,145.14,145.09,6.52657995]
[1750800943311,6.51706635,145.14,145.09,95.22657995]
[1750800944107,1.37797996,145.14,145.09,95.22657995]
[1750800944313,6.51706635,145.14,145.09,95.22657995]
[1750800946797,13.0436463,145.14,145.09,95.22657995]
[1750800947000,7.90455991,145.14,145.09,95.22657995]
[1750800947299,13.0436463,145.14,145.09,6.52657995]
[1750800947505,7.90455991,145.14,145.09,6.52657995]
[1750800947706,13.0436463,145.14,145.08,6.52657995]
[1750800947891,11.66566634,145.13,145.08,6.52657995]
[1750800948207,1.37797996,145.14,145.07,6.52657995]
[1750800948208,6.52657995,145.12,145.07,6.52657995]
[1750800948414,4.17959979,145.12,145.07,4.17959979]
[1750800949018,1.37826476,145.11,145.05,13.30344055]
[1750800949318,4.17959979,145.12,145.05,13.30344055]
[1750800949319,1.37807482,145.13,145.09,4.17959979]
[1750800950318,1.37807482,145.13,145.09,6.52823134]
[1750800952498,1.37802394,145.14,145.1,6.52823134]
[1750800952814,27.37790096,145.15,145.1,6.52823134]
[1750800952990,27.37790096,145.15,145.11,6.52823134]
[1750800954706,7.25783291,145.16,145.12,6.52823134]
[1750800955099,5.88,145.16,145.12,6.52823134]
[1750800955299,5.88,145.16,145.12,13.41893093]
[1750800960223,5.88,145.16,145.12,6.89069959]
[1750800960522,5.88,145.16,145.12,13.41893093]
[1750800961618,11.0086566,145.16,145.12,13.41893093]
[1750800963423,5.88,145.16,145.12,13.41893093]
[1750800963926,5.88,145.16,145.12,102.11893093]
[1750800964325,11.01988513,145.16,145.12,102.11893093]
[1750800964523,5.88,145.16,145.12,102.11893093]
[1750800964830,1.37773532,145.17,145.13,6.52823134]
[1750800965127,5.14264467,145.16,145.13,95.22823134]
[1750800965332,7.27773532,145.17,145.13,95.22823134]
[1750800965517,5.14287671,145.16,145.13,95.22823134]
[1750800965715,5.14287671,145.15,145.13,95.22823134]
[1750800965909,7.27773532,145.17,145.13,95.22823134]
[1750800966110,5.1459684,145.16,145.13,95.22823134]
[1750800966312,5.1459684,145.15,145.13,95.22823134]
[1750800966511,7.27773532,145.17,145.13,95.22823134]
[1750800966812,5.1495987,145.16,145.13,95.22823134]
[1750800967010,5.1495987,145.15,145.13,95.22823134]
[1750800967212,7.27773532,145.17,145.13,95.22823134]
[1750800967513,5.1495987,145.16,145.13,95.22823134]
[1750800967711,5.1495987,145.15,145.13,95.22823134]
[1750800967907,5.9,145.17,145.13,102.11844339]
[1750800968211,5.1515407,145.16,145.13,102.11844339]
[1750800968407,5.1515407,145.15,145.13,102.11844339]
[1750800968626,7.2777145,145.17,145.13,95.22823134]
[1750800968952,5.15337004,145.16,145.13,95.22823134]
[1750800969231,5.15337004,145.15,145.13,95.22823134]
[1750800969424,7.2777145,145.17,145.13,95.22823134]
[1750800969611,6.53137118,145.16,145.13,95.22823134]
[1750800969925,5.15355592,145.15,145.13,6.52823134]
[1750800970127,1.37781526,145.16,145.13,6.52823134]
[1750800970330,5.15359347,145.15,145.13,6.52823134]
[1750800970632,5.15359347,145.14,145.13,6.52823134]
[1750800970824,7.27772618,145.17,145.13,6.52823134]
[1750800971016,5.1535069,145.16,145.13,6.52823134]
[1750800971204,5.1535069,145.15,145.13,6.52823134]
[1750800971404,7.27772618,145.17,145.13,6.52823134]
[1750800971631,5.15336576,145.16,145.13,6.52823134]
[1750800971806,5.15336576,145.15,145.13,6.52823134]
[1750800972003,7.27772618,145.17,145.13,6.52823134]
[1750800972222,6.53113871,145.16,145.13,4.17572594]
[1750800972423,5.15332769,145.15,145.13,4.17572594]
[1750800972617,1.37781102,145.16,145.13,4.17572594]
[1750800972933,5.15318403,145.15,145.13,4.17572594]
[1750800973231,1.37781102,145.16,145.13,4.17572594]
[1750800973418,5.15318403,145.15,145.13,4.17572594]
[1750800973618,1.37781102,145.16,145.13,4.17572594]
[1750800973921,5.15303752,145.15,145.13,4.17572594]
[1750800974121,1.37781102,145.16,145.13,4.17572594]
[1750800974424,5.15300871,145.15,145.13,4.17572594]
[1750800974625,1.37781102,145.16,145.13,4.17572594]
[1750800974926,5.1528575,145.15,145.13,4.17572594]
[1750800975125,1.37781102,145.16,145.13,4.17572594]
[1750800975426,5.1528575,145.15,145.13,4.17572594]
[1750800975622,1.37781102,145.16,145.13,4.17572594]
[1750800975934,5.152593,145.15,145.13,4.17572594]
[1750800976229,1.37781102,145.16,145.13,4.17572594]
[1750800976432,5.15256371,145.15,145.13,4.17572594]
[1750800976630,1.37781102,145.16,145.13,4.17572594]
[1750800976832,5.15226874,145.15,145.13,4.17572594]
[1750800977024,1.37781102,145.16,145.13,4.17572594]
[1750800977227,5.15229803,145.15,145.13,4.17572594]
[1750800977427,1.37781102,145.16,145.13,4.17572594]
[1750800977732,5.15204311,145.15,145.13,4.17572594]
[1750800977934,1.37781102,145.16,145.13,4.17572594]
[1750800978232,5.15205188,145.15,145.13,4.17572594]
[1750800978535,1.37781102,145.16,145.13,4.17572594]
[1750800978709,5.15182527,145.15,145.13,4.17572594]
[1750800978909,1.37781102,145.16,145.13,4.17572594]
[1750800979116,5.1518165,145.15,145.13,4.17572594]
[1750800979318,1.37781102,145.16,145.13,4.17572594]
[1750800979519,5.1515947,145.15,145.13,4.17572594]
[1750800979819,1.37781102,145.16,145.13,4.17572594]
[1750800980018,5.1515947,145.15,145.13,4.17572594]
[1750800980229,1.37781102,145.16,145.13,4.17572594]
[1750800980430,5.15156589,145.15,145.13,4.17572594]
[1750800980629,1.37781102,145.16,145.13,4.17572594]
[1750800980832,5.15136006,145.15,145.13,4.17572594]
[1750800981116,1.37781102,145.16,145.13,4.17572594]
[1750800981418,5.15136006,145.15,145.13,4.17572594]
[1750800981726,35.15774164,145.17,145.13,4.17572594]
[1750800981919,5.15123584,145.16,145.14,4.17572594]
[1750800982123,5.15123584,145.15,145.14,4.17572594]
[1750800982629,35.15774164,145.17,145.14,4.17572594]
[1750800982830,5.15095328,145.16,145.14,4.17572594]
[1750800983033,35.15774164,145.17,145.14,4.17572594]
[1750800983337,5.15095328,145.16,145.14,4.17572594]
[1750800983522,35.15774164,145.17,145.14,4.17572594]
[1750800983719,5.15068396,145.16,145.14,4.17572594]
[1750800983938,35.15774164,145.17,145.14,4.17572594]
[1750800984132,5.15068444,145.16,145.14,4.17572594]
[1750800984324,5.9,145.17,145.15,4.17572594]
[1750800984535,5.9,145.17,145.16,4.17572594]
[1750800984717,11.05015927,145.17,145.16,4.17572594]
[1750800985518,11.05015927,145.17,145.15,11.06512534]
[1750800985731,5.9,145.17,145.15,11.06512534]
[1750800988934,5.9,145.17,145.14,6.88966699]
[1750800989235,5.9,145.17,145.15,4.17572594]
[1750800990644,5.9,145.17,145.15,92.87572594]
[1750800992041,5.9,145.17,145.15,88.7]
[1750800992342,5.9,145.17,145.15,92.87572594]
[1750800992547,5.15027542,145.16,145.15,92.87572594]
[1750800992921,5.9,145.17,145.15,92.87572594]
[1750800993523,5.15131245,145.16,145.15,92.87572594]
[1750801005451,5.15131245,145.16,145.15,99.76515067]
[1750801005650,1.37755273,145.19,145.15,99.76515067]
[1750801005956,5.1577297,145.18,145.17,4.17572594]
[1750801006436,5.1577297,145.18,145.17,11.06420152]
[1750801007554,13.69358438,145.22,145.17,99.76420152]
[1750801007727,5.15503613,145.21,145.18,4.17572594]
[1750801007926,5.15503613,145.2,145.18,92.87572594]
[1750801008152,5.15503613,145.19,145.18,92.87572594]
[1750801009450,7.25726283,145.22,145.18,92.87572594]
[1750801009659,5.15242937,145.21,145.19,4.17572594]
[1750801009958,5.15242937,145.2,145.18,92.87572594]
[1750801010254,7.25726283,145.22,145.18,92.87572594]
[1750801010442,5.15120313,145.21,145.18,92.87572594]
[1750801010645,5.15120313,145.2,145.18,92.87572594]
[1750801010849,7.25726283,145.22,145.18,92.87572594]
[1750801011052,5.15123737,145.21,145.18,92.87572594]
[1750801011240,5.15123737,145.2,145.18,92.87572594]
[1750801011442,7.25726283,145.22,145.18,92.87572594]
[1750801011641,5.1502567,145.21,145.18,92.87572594]
[1750801011937,5.1502567,145.2,145.18,92.87572594]
[1750801012257,7.25726283,145.22,145.18,92.87572594]
[1750801012434,5.14943048,145.21,145.18,99.76356086]
[1750801012635,5.14943048,145.2,145.19,4.17572594]
[1750801014162,5.14943048,145.2,145.19,92.87572594]
[1750801019546,5.88,145.22,145.19,92.87572594]
[1750801019884,5.14630396,145.21,145.19,92.87572594]
[1750801020041,5.88,145.22,145.19,92.87572594]
[1750801020246,5.146303,145.21,145.2,4.17572594]
[1750801021777,45.20697291,145.24,145.2,4.17572594]
[1750801021778,17.34697291,145.24,145.2,22.8253748]
[1750801022069,7.81311009,145.27,145.23,4.17572594]
[1750801022368,5.14472832,145.26,145.23,4.17572594]
[1750801022564,1.37678854,145.27,145.23,4.17572594]
[1750801022565,5.14472832,145.25,145.23,4.17572594]
[1750801022770,5.14472832,145.24,145.23,4.17572594]
[1750801024350,5.14472832,145.26,145.23,4.17572594]
[1750801024559,5.14472832,145.25,145.23,4.17572594]
[1750801024871,1.37678854,145.27,145.23,4.17572594]
[1750801025064,5.13980412,145.26,145.23,4.17572594]
[1750801025266,5.13980412,145.25,145.23,4.17572594]
[1750801025468,4.17572594,145.28,145.23,4.17572594]
[1750801025660,6.5153612,145.27,145.23,4.17572594]
[1750801025866,5.13855631,145.26,145.23,4.17572594]
[1750801026064,5.13855631,145.25,145.23,4.17572594]
[1750801026263,1.37680489,145.27,145.23,4.17572594]
[1750801026576,5.13731855,145.26,145.24,4.17572594]
[1750801026779,1.37680489,145.27,145.24,4.17572594]
[1750801026972,5.13724735,145.26,145.24,4.17572594]
[1750801027273,5.13706982,145.26,145.24,4.17572594]
[1750801027456,1.37665198,145.28,145.24,4.17572594]
[1750801027661,5.13540103,145.27,145.24,4.17572594]
[1750801027972,1.37665198,145.28,145.24,4.17572594]
[1750801028178,5.13537157,145.27,145.24,4.17572594]
[1750801028374,5.13369701,145.27,145.24,4.17572594]
[1750801028681,6.51044596,145.27,145.24,4.17572594]
[1750801028859,1.37674895,145.27,145.24,4.17572594]
[1750801029059,6.51044596,145.27,145.24,4.17572594]
[1750801029261,1.37674895,145.27,145.24,4.17572594]
[1750801029459,6.51044596,145.27,145.24,4.17572594]
[1750801029669,6.51037561,145.28,145.24,11.06083368]
[1750801029871,5.13369701,145.27,145.25,4.17572594]
[1750801031176,5.13369701,145.27,145.25,11.06040297]
[1750801031377,12.39029251,145.29,145.26,4.17572594]
[1750801033481,16.56601845,145.29,145.22,114.7]
[1750801033780,16.56601845,145.29,145.23,4.17572594]
[1750801033781,4.17572594,145.28,145.23,4.17572594]
[1750801033981,32.03572594,145.27,145.22,4.17572594]
[1750801034163,37.16942295,145.27,145.22,4.17572594]
[1750801034360,32.03572594,145.27,145.22,4.17572594]
[1750801034681,37.16942295,145.27,145.22,4.17572594]
[1750801034870,32.03572594,145.27,145.22,4.17572594]
[1750801035075,1.37684152,145.26,145.22,4.17572594]
[1750801035582,5.55256746,145.26,145.22,4.17572594]
[1750801036565,5.55256746,145.26,145.19,8.49565844]
[1750801036566,5.55256746,145.26,145.21,4.17572594]
[1750801036765,5.55256746,145.26,145.22,4.17572594]
[1750801037688,10.68626447,145.26,145.21,4.17572594]
[1750801038569,9.30942295,145.25,145.2,4.17572594]
[1750801038980,4.17572594,145.24,145.18,30.17572594]
[1750801039167,27.86,145.23,145.18,30.17572594]
[1750801039372,27.86,145.23,145.19,4.17572594]
[1750801040270,1.37722076,145.22,145.19,4.17572594]
[1750801040887,5.5529467,145.22,145.17,4.17572594]
[1750801041460,10.68664371,145.22,145.17,4.17572594]
[1750801042870,4.17572594,145.21,145.16,4.17572594]
[1750801043077,9.30942295,145.21,145.16,4.17572594]
[1750801044373,1.37741046,145.2,145.16,4.17572594]
[1750801045691,6.51110747,145.2,145.16,4.17572594]
[1750801046283,6.51110747,145.2,145.15,4.17572594]
[1750801046501,1.37760022,145.18,145.15,4.17572594]
[1750801046717,1.37760022,145.18,145.13,27.6145]
[1750801046866,1.37760022,145.18,145.11,13.30497428]
[1750801046867,10.05572594,145.17,145.12,4.17572594]
[1750801047200,10.05572594,145.17,145.11,4.17572594]
[1750801047201,4.17572594,145.16,145.11,4.17572594]
[1750801047569,4.17572594,145.16,145.1,4.17572594]
[1750801047791,9.31141271,145.16,145.1,4.17572594]
[1750801047963,9.31141271,145.16,145.09,1.5713]
[1750801047964,4.17572594,145.15,145.09,1.5713]
[1750801048165,4.17572594,145.14,145.08,4.17572594]
[1750801048370,6.52912721,145.14,145.08,6.52912721]
[1750801048581,27.88,145.15,145.07,6.52912721]
[1750801048582,6.52912721,145.12,145.07,6.52912721]
[1750801048774,6.52912721,145.11,145.06,6.52912721]
[1750801048995,12.40912721,145.11,145.05,6.52912721]
[1750801049790,6.52912721,145.1,145.05,6.52912721]
[1750801050696,1.37845475,145.09,145.05,6.52912721]
[1750801055997,1.37845475,145.09,145.04,6.89463952]
[1750801056183,1.37845475,145.09,145.05,6.52912721]
[1750801056770,1.37845475,145.09,145.04,6.52912721]
[1750801057698,1.37845475,145.09,145.03,32.89497231]
[1750801057895,7.90758196,145.09,145.04,6.52912721]
[1750801058097,1.37845475,145.09,145.04,6.52912721]
[1750801058992,7.90758196,145.09,145.04,6.52912721]
[1750801060007,6.52912721,145.07,145.03,88.7]
[1750801060375,6.52912721,145.06,145.0,6.52912721]
[1750801060684,6.52912721,145.05,145.0,6.52912721]
[1750801060882,6.52912721,145.03,144.97,10.4053605]
[1750801061097,5.88,145.05,144.97,10.4053605]
[1750801061098,6.52912721,145.02,144.97,10.4053605]
[1750801061406,6.52912721,145.02,144.97,16.93448771]
[1750801062000,7.90830876,145.02,144.97,16.93448771]
[1750801062305,7.90830876,145.02,144.97,23.83242981]
[1750801062485,7.90830876,145.02,144.97,16.93448771]
[1750801063385,7.90830876,145.02,144.97,10.4053605]
[1750801063594,7.90830876,145.02,144.97,16.93448771]
[1750801063992,7.90830876,145.02,144.97,10.4053605]
[1750801063993,6.52912721,145.0,144.97,10.4053605]
[1750801064307,27.94,145.03,144.97,10.4053605]
[1750801064308,27.94,145.03,144.98,6.52912721]
[1750801064513,27.94,145.03,144.99,6.52912721]
[1750801065706,5.88,145.07,145.02,6.52912721]
[1750801066095,5.88,145.07,145.03,6.52912721]
[1750801066608,5.88,145.07,144.99,24.82880164]
[1750801066609,5.88,145.07,145.04,6.52912721]
[1750801067310,5.88,145.07,145.05,6.52912721]
[1750801067510,5.88,145.07,145.05,13.4228421]
[1750801067890,5.88,145.07,145.06,6.52912721]
[1750801069900,1.3783706,145.1,145.06,6.52912721]
[1750801071014,7.90745041,145.11,145.06,13.42264936]
[1750801071219,7.90745041,145.11,145.06,6.89352215]
[1750801071391,7.90745041,145.11,145.06,13.42264936]
[1750801072896,43.45022542,145.12,145.06,13.42264936]
[1750801077104,43.45022542,145.12,145.07,6.52912721]
[1750801077915,36.92109821,145.12,145.06,6.52912721]
[1750801078294,36.92109821,145.12,145.07,6.89322396]
[1750801079216,42.01687107,145.12,145.07,6.89322396]
[1750801079615,39.13577286,145.12,145.07,102.12235117]
[1750801079821,34.0,145.13,145.08,6.52912721]
[1750801080007,40.52912721,145.13,145.08,95.22912721]
[1750801080318,34.0,145.13,145.08,95.22912721]
[1750801080494,20.02762874,145.14,145.08,88.7]
[1750801080697,25.46924915,145.2,145.07,13.42235117]
[1750801080698,6.52912721,145.21,145.13,6.52912721]
[1750801080904,5.09816906,145.21,145.16,6.52912721]
[1750801081217,18.98456019,145.22,145.16,6.52912721]
[1750801081434,5.09816906,145.21,145.16,6.52912721]
[1750801081602,18.98456019,145.22,145.16,6.52912721]
[1750801081805,18.98456019,145.22,145.17,6.88847558]
[1750801082529,5.09816906,145.21,145.17,6.88847558]
[1750801083524,5.09816906,145.2,145.17,6.88847558]
[1750801084715,5.09816906,145.2,145.13,24.11512917]
[1750801084922,5.09816906,145.2,145.16,6.52912721]
[1750801085093,5.09816906,145.2,145.13,24.11512917]
[1750801085293,5.09816906,145.2,145.16,6.52912721]
[1750801086598,5.09816906,145.2,145.15,6.52912721]
[1750801088620,5.09816906,145.2,145.16,6.52912721]
[1750801089026,5.09816906,145.2,145.17,6.88847558]
[1750801091022,5.09816906,145.2,145.16,95.58895012]
[1750801092407,37.62729627,145.21,145.16,95.58895012]
[1750801092831,37.62729627,145.21,145.16,102.11807733]
[1750801093324,39.00465486,145.21,145.16,95.58895012]
[1750801093513,39.00465486,145.21,145.16,102.11807733]
[1750801094531,33.9064858,145.21,145.16,102.11807733]
[1750801095439,33.9064858,145.21,145.16,95.58895012]
[1750801096031,27.37735859,145.21,145.16,95.58895012]
[1750801100742,1.37735859,145.21,145.16,102.11807733]
[1750801101343,7.9064858,145.21,145.16,102.11807733]
[1750801101851,1.37735859,145.21,145.16,102.11807733]
[1750801102059,42.0263641,145.22,145.16,13.41807733]
[1750801102224,5.98,145.22,145.18,6.52912721]
[1750801102542,5.98,145.22,145.19,6.52912721]